bitfinex-derivatives/quotes_ETHF0:USTF0_20240829
["timestamp","ask_amount","ask_price","bid_price","bid_amount"]
[1724959084671,3.2078,2528.2,2528.1,0.39545]
[1724959084873,3.2078,2528.2,2527.6,40.8]
[1724959085075,4.55974824,2528.1,2528.0,0.39547]
[1724959085273,2.1812,2528.3,2527.8,4.56]
[1724959085473,2.1812,2528.3,2527.7,3.2078]
[1724959085692,4.55974824,2528.2,2527.6,40.8]
[1724959085884,2.66566,2528.1,2527.6,40.8]
[1724959086181,4.11752197,2528.0,2527.8,0.39549]
[1724959086571,8.07352197,2528.0,2527.6,40.8]
[1724959086772,4.11752197,2528.0,2527.6,40.8]
[1724959087171,4.11752197,2528.0,2527.4,3.2137373]
[1724959087479,4.11752197,2528.0,2526.5,7.7678]
[1724959087480,3.2078,2527.5,2526.5,7.7678]
[1724959087779,15.66620197,2528.0,2526.5,7.7678]
[1724959087780,12.51789441,2527.4,2527.1,0.39561]
[1724959087975,12.51789441,2527.4,2527.1,0.3956]
[1724959088279,12.51789441,2527.4,2526.5,4.56]
[1724959088280,4.94575,2527.3,2526.5,4.56]
[1724959088480,4.94575,2527.3,2526.7,0.39566]
[1724959088481,0.39562,2527.1,2526.7,0.39566]
[1724959088682,0.0059373,2527.2,2526.5,7.7678]
[1724959088873,0.0059373,2527.2,2527.1,0.39561]
[1724959090781,7.3e-06,2527.2,2527.1,14.54923]
[1724959090985,7.3e-06,2527.2,2527.1,19.09655]
[1724959091380,2.3454,2528.1,2528.0,0.39547]
[1724959091779,4.3663,2528.3,2527.8,40.8]
[1724959091780,2.2121,2528.3,2527.8,40.8]
[1724959092080,4.43759009,2528.2,2528.0,0.39546]
[1724959092276,4.43759009,2528.2,2527.8,40.8]
[1724959092582,4.43759009,2528.2,2527.8,41.19549]
[1724959092884,4.43759009,2528.2,2527.9,0.39548]
[1724959093087,4.83303009,2528.2,2527.8,0.39549]
[1724959093294,3.2078,2528.1,2527.6,3.2078]
[1724959093488,2.1239,2528.0,2527.6,3.2078]
[1724959093686,3.2078,2527.7,2527.1,0.39559]
[1724959093888,4.81243,2527.6,2527.2,0.39558]
[1724959094188,8.57028173,2527.6,2527.3,0.39557]
[1724959094404,4.81243,2527.6,2527.2,0.39558]
[1724959094586,4.81243,2527.6,2526.9,40.8059373]
[1724959094587,4.15338173,2527.5,2526.9,40.8059373]
[1724959094778,4.15338173,2527.5,2527.2,0.39558]
[1724959094978,4.15338173,2527.5,2526.9,40.8059373]
[1724959095181,4.54893173,2527.5,2526.9,0.0059373]
[1724959095390,4.54893173,2527.5,2527.1,0.3956]
[1724959095582,4.54893173,2527.5,2526.9,0.0059373]
[1724959095583,0.39558,2527.3,2526.9,0.4015673]
[1724959095981,4.40470487,2527.2,2526.9,0.0059373]
[1724959096380,4.95223867,2527.3,2526.9,0.4015773]
[1724959096579,4.95223867,2527.3,2526.9,0.0059373]
[1724959096580,0.39558,2527.3,2526.9,0.0059373]
[1724959096788,4.35238,2527.3,2526.9,0.0059373]
[1724959097091,4.95225867,2527.2,2526.9,0.0059373]
[1724959097284,4.55665867,2527.2,2526.9,0.0059373]
[1724959097990,5.5249,2527.4,2527.1,0.3956]
[1724959098287,5.5249,2527.4,2527.3,0.39558]
[1724959098288,3.2078,2527.4,2527.3,0.39558]
[1724959098482,3.2078,2527.5,2527.3,0.39557]
[1724959099088,4.45912476,2527.4,2526.9,0.0059373]
[1724959099291,0.39559,2527.3,2526.9,0.0059373]
[1724959099592,4.85472476,2527.2,2526.9,0.0059373]
[1724959099984,0.3956,2527.2,2526.9,0.0059373]
[1724959100182,4.56969062,2527.1,2526.9,0.0059373]
[1724959100686,2.60167,2527.4,2527.0,0.39562]
[1724959101081,4.28885369,2527.3,2527.0,0.39561]
[1724959101284,8.24565369,2527.3,2526.9,0.0059373]
[1724959101484,3.6034,2527.2,2526.9,0.0059373]
[1724959101784,4.68446369,2527.1,2526.9,0.0059373]
[1724959101986,2.2222,2527.0,2526.9,0.0059373]
[1724959102187,6.1798,2527.0,2526.9,0.0059373]
[1724959102384,10.37916023,2527.0,2526.9,0.0059373]
[1724959103189,10.37916023,2527.0,2526.9,0.4015773]
[1724959103388,10.37916023,2527.0,2526.9,0.0059373]
[1724959103586,2.2222,2527.0,2526.9,0.4015773]
[1724959105687,2.2222,2527.0,2526.9,0.0059373]
[1724959105887,12.57542,2527.0,2526.9,0.0059373]
[1724959106089,16.88644763,2527.0,2526.9,0.0059373]
[1724959106294,0.39564,2526.9,2526.5,4.50269]
[1724959106487,0.39564,2526.9,2526.3,3.2078]
[1724959106488,2.67846,2526.8,2526.4,0.3957]
[1724959106683,6.98948763,2526.8,2526.4,0.3957]
[1724959106890,6.98948763,2526.8,2526.3,3.2078]
[1724959106891,0.39571,2526.5,2526.3,3.2078]
[1724959107388,0.39572,2526.4,2526.3,3.2078]
[1724959107594,0.39572,2526.4,2526.2,0.39574]
[1724959107595,4.34197516,2526.4,2526.2,0.39574]
[1724959107782,4.73769516,2526.4,2526.1,0.39575]
[1724959108095,4.54188319,2526.5,2526.2,0.39574]
[1724959108291,4.14617319,2526.3,2526.2,0.39574]
[1724959108494,8.10457319,2526.3,2525.7,4.107]
[1724959108697,4.54191319,2526.3,2526.0,0.39576]
[1724959108905,4.54191319,2526.3,2525.7,4.107]
[1724959108906,4.14617319,2526.3,2525.7,4.107]
[1724959109195,4.14617319,2526.3,2526.1,0.39576]
[1724959109594,6.41207319,2526.3,2526.2,0.39575]
[1724959110189,6.41207319,2526.3,2525.8,0.3958]
[1724959110190,0.39577,2526.1,2525.8,0.3958]
[1724959110398,10.37047319,2526.3,2525.7,4.107]
[1724959110399,4.6699,2526.2,2525.7,4.107]
[1724959110704,0.39579,2526.0,2525.7,0.39583]
[1724959111000,4.94436004,2526.1,2525.8,0.39581]
[1724959111393,0.39578,2526.0,2525.7,0.39582]
[1724959111994,4.54859004,2526.1,2525.6,3.2078]
[1724959112196,2.2659,2526.3,2526.1,0.39576]
[1724959112402,2.2659,2526.3,2526.2,0.39575]
[1724959112598,2.2659,2526.3,2525.9,0.39579]
[1724959112599,6.2243,2526.3,2525.9,0.39579]
[1724959112791,6.2243,2526.3,2525.6,3.2078]
[1724959112792,2.2659,2526.3,2525.6,3.2078]
[1724959112988,2.2659,2526.3,2526.2,0.39575]
[1724959113199,6.2243,2526.3,2526.2,0.39575]
[1724959113501,6.62004,2526.3,2526.0,0.39577]
[1724959113697,2.2659,2526.3,2526.0,0.39578]
[1724959113903,2.2659,2526.3,2525.8,40.8]
[1724959114087,0.39575,2526.2,2525.9,0.39579]
[1724959114295,4.5491991,2526.2,2525.9,0.39579]
[1724959114501,4.1534491,2526.2,2526.0,0.39578]
[1724959115408,4.5491991,2526.2,2525.9,0.39579]
[1724959115700,0.39576,2526.1,2525.9,0.39579]
[1724959115898,4.5492091,2526.2,2525.9,0.39579]
[1724959116399,4.5492091,2526.2,2525.3,2.1541]
[1724959116400,0.39583,2525.7,2525.5,0.39585]
[1724959116708,0.39581,2525.9,2525.6,0.39583]
[1724959117000,5.30339348,2525.9,2525.3,0.39588]
[1724959117204,5.30339348,2525.9,2525.2,3.6037]
[1724959117205,0.39587,2525.5,2525.2,3.6037]
[1724959117396,2.1699,2525.4,2525.3,0.39589]
[1724959117702,2.56578,2525.4,2525.2,3.2078]
[1724959118005,2.56578,2525.4,2524.6,4.56]
[1724959118006,9.3377,2525.4,2524.6,4.56]
[1724959118202,0.39594,2525.0,2524.7,0.39597]
[1724959118698,0.39592,2525.1,2524.8,0.39596]
[1724959118899,2.59453857,2525.3,2524.9,0.39594]
[1724959119100,0.39593,2525.1,2524.8,0.39596]
[1724959119299,0.39593,2525.1,2524.9,0.39595]
[1724959119503,0.39593,2525.1,2524.8,0.39596]
[1724959120497,2.59453857,2525.3,2524.5,7.3148]
[1724959120698,2.59453857,2525.3,2524.5,7.7108]
[1724959120699,0.39597,2524.8,2524.5,7.7108]
[1724959120900,2.2913,2524.7,2524.6,0.396]
[1724959122008,0.396,2524.6,2524.3,0.39604]
[1724959122205,0.396,2524.6,2524.1,3.2078]
[1724959122206,0.39602,2524.5,2524.1,3.2078]
[1724959122408,0.39602,2524.5,2524.2,0.39606]
[1724959122607,2.52251,2524.6,2524.3,0.39604]
[1724959122907,2.52251,2524.6,2524.1,3.2078]
[1724959122908,2.1265,2524.6,2524.2,0.39605]
[1724959123116,2.1265,2524.6,2523.7,15.57]
[1724959123117,8.74897967,2524.5,2524.0,0.39609]
[1724959123408,0.39607,2524.2,2523.7,4.107]
[1724959123610,2.2913,2524.1,2523.9,0.3961]
[1724959123910,2.2913,2524.1,2524.0,0.39609]
[1724959125309,2.2913,2524.1,2523.9,0.3961]
[1724959126203,2.2913,2524.1,2524.0,0.39609]
[1724959126907,2.2913,2524.1,2523.5,44.0986]
[1724959126908,12.2529,2524.1,2523.5,40.8]
[1724959127113,2.1658,2524.0,2523.4,3.2078]
[1724959127308,0.39612,2523.9,2523.5,0.39616]
[1724959127512,4.19715442,2523.9,2523.6,0.39616]
[1724959128314,4.19715442,2523.9,2523.8,0.39612]
[1724959128506,2.1717373,2524.0,2523.4,3.2078]
[1724959128710,2.5678373,2524.0,2523.7,0.39614]
[1724959128916,4.14071904,2523.9,2523.6,0.39615]
[1724959129109,4.53682904,2523.9,2523.6,0.39615]
[1724959129312,0.39613,2523.8,2523.4,3.2078]
[1724959129517,7.74463904,2523.9,2523.5,0.39616]
[1724959129709,7.34851904,2523.9,2523.4,3.2078]
[1724959129922,7.74462904,2523.9,2523.6,0.39615]
[1724959130210,7.34851904,2523.9,2523.7,0.39614]
[1724959131112,7.34851904,2523.9,2523.8,0.39612]
[1724959131113,3.2078,2523.9,2523.8,0.39612]
[1724959131317,0.0059373,2524.0,2523.9,0.39611]
[1724959133406,0.0059373,2524.0,2523.8,0.39611]
[1724959133712,0.0059373,2524.0,2523.9,0.39611]
[1724959136224,3.9683373,2524.0,2523.4,3.2078]
[1724959136419,0.39611,2523.9,2523.4,3.2078]
[1724959136722,0.39611,2523.9,2523.6,0.39615]
[1724959137017,0.39613,2523.8,2523.6,0.39615]
[1724959137418,2.1708373,2524.0,2523.4,3.2078]
[1724959137419,3.2078,2523.9,2523.4,3.2078]
[1724959137614,2.2894,2523.7,2523.4,3.2078]
[1724959137916,7.49574547,2523.9,2523.8,0.39612]
[1724959138110,3.2078,2523.9,2523.8,0.39612]
[1724959138621,0.0059373,2524.0,2523.9,0.39611]
[1724959140019,0.0059373,2524.0,2523.9,5.34879]
[1724959140215,0.0059373,2524.0,2523.9,4.35851]
[1724959140528,0.0059373,2524.0,2523.9,0.39611]
[1724959141010,0.0059373,2524.0,2523.9,1.38639]
[1724959141520,3.9683373,2524.0,2523.2,3.430234]
[1724959141721,0.39613,2523.8,2523.6,0.39615]
[1724959141909,0.39613,2523.8,2523.6,0.39616]
[1724959141910,2.1936,2523.7,2523.6,0.39616]
[1724959142806,2.58974,2523.7,2523.5,0.39616]
[1724959143012,0.39619,2523.4,2523.2,3.2078]
[1724959143215,0.39618,2523.5,2523.2,3.60401]
[1724959143417,11.09829014,2523.7,2523.3,0.3962]
[1724959143418,0.39616,2523.6,2523.3,0.3962]
[1724959143618,0.39617,2523.5,2523.3,0.3962]
[1724959143818,4.54312768,2523.5,2523.2,3.60401]
[1724959144216,0.39619,2523.4,2523.2,3.60401]
[1724959144512,3.2078,2523.3,2522.8,2.341]
[1724959144720,5.4265,2523.3,2523.0,0.39624]
[1724959145319,5.4265,2523.3,2523.1,0.39623]
[1724959146125,5.4265,2523.3,2523.2,0.39622]
[1724959146416,6.7536,2523.7,2522.7,9.5262]
[1724959146417,5.4014,2523.7,2522.7,9.5262]
[1724959146619,4.79495193,2524.0,2523.3,3.2078]
[1724959146620,5.236,2523.9,2523.3,3.2078]
[1724959146819,5.236,2523.9,2523.2,0.99055]
[1724959147020,5.236,2523.9,2523.8,0.39612]
[1724959147211,5.236,2523.9,2523.6,3.2078]
[1724959147212,0.0059373,2524.0,2523.9,0.39611]
[1724959148226,0.0059373,2524.0,2523.9,4.35851]
[1724959149222,0.0059373,2524.0,2523.9,0.39611]
[1724959149721,0.0059373,2524.0,2523.8,0.39612]
[1724959150231,0.0059373,2524.0,2523.9,0.39611]
[1724959150925,0.0059373,2524.0,2523.9,7.56631]
[1724959153015,3.2078,2524.9,2523.9,14.16048]
[1724959153218,3.2078,2524.9,2524.8,0.39597]
[1724959153420,7.1686,2524.9,2524.7,0.39598]
[1724959153728,7.1686,2524.9,2524.6,0.39599]
[1724959153729,3.9608,2524.8,2524.6,0.39599]
[1724959154023,7.41034815,2524.9,2524.8,0.39597]
[1724959154024,3.2078,2524.9,2524.8,0.39597]
[1724959154428,0.0059373,2525.0,2524.9,0.39595]
[1724959154922,0.0059373,2525.0,2524.5,3.2078]
[1724959155116,3.2078,2524.9,2524.4,4.1129373]
[1724959155316,0.39598,2524.8,2524.4,4.5089573]
[1724959155513,4.37280125,2524.8,2524.5,0.39601]
[1724959155723,4.76878125,2524.8,2524.4,4.1129373]
[1724959155927,0.39598,2524.7,2524.4,4.5089573]
[1724959156229,4.37280125,2524.8,2524.4,4.1129373]
[1724959156525,4.37280125,2524.8,2524.7,0.39598]
[1724959156719,0.0059373,2525.0,2524.4,4.1129373]
[1724959157324,0.0059373,2525.0,2524.9,0.39595]
[1724959159625,0.0059373,2525.0,2524.8,3.60376]
[1724959159823,0.0059373,2525.0,2524.9,0.39595]
[1724959161133,0.0059373,2525.0,2524.4,7.3207373]
[1724959161429,0.4018773,2525.0,2524.6,0.39599]
[1724959161631,4.34344008,2524.9,2524.4,3.2137373]
[1724959161822,0.39601,2524.5,2524.4,0.0059373]
[1724959162022,0.39601,2524.6,2524.4,0.0059373]
[1724959162229,11.63766008,2524.9,2524.4,0.0059373]
[1724959162230,2.2506,2524.5,2524.4,0.0059373]
[1724959162734,6.60821,2524.5,2524.4,0.0059373]
[1724959163030,10.59759171,2524.5,2524.4,0.0059373]
[1724959163226,6.2122,2524.5,2524.4,0.0059373]
[1724959163528,6.60821,2524.5,2524.4,0.0059373]
[1724959163728,6.2122,2524.5,2524.4,0.0059373]
[1724959164136,6.60821,2524.5,2524.4,0.0059373]
[1724959164336,6.2122,2524.5,2524.4,0.0059373]
[1724959164533,6.60821,2524.5,2524.4,0.0059373]
[1724959165441,6.2122,2524.5,2524.4,0.0059373]
[1724959165735,11.01953426,2524.5,2524.4,0.0059373]
[1724959165936,10.62352426,2524.5,2524.4,0.0059373]
[1724959166133,2.2506,2524.5,2524.4,0.4019673]
[1724959167233,6.2122,2524.5,2524.4,0.0059373]
[1724959167531,11.04493427,2524.5,2524.4,0.0059373]
[1724959168133,10.64892427,2524.5,2524.4,0.0059373]
[1724959168526,11.04493427,2524.5,2524.4,0.0059373]
[1724959169442,11.04493427,2524.5,2524.0,4.107]
[1724959169443,0.39608,2524.1,2524.0,4.107]
[1724959169743,0.39605,2524.3,2523.8,3.2078]
[1724959169935,2.61425,2524.3,2523.8,3.2078]
[1724959170131,6.84890684,2524.3,2523.8,3.2078]
[1724959170438,6.84890684,2524.3,2523.8,3.60392]
[1724959170439,2.2182,2524.3,2523.8,3.60392]
[1724959170732,0.39608,2524.1,2523.8,3.60392]
[1724959171133,2.52307,2524.2,2523.9,0.39611]
[1724959171336,2.127,2524.2,2523.8,3.2078]
[1724959171742,2.52307,2524.2,2524.0,0.39609]
[1724959171927,2.127,2524.2,2524.1,0.39608]
[1724959172239,2.127,2524.2,2524.0,0.39608]
[1724959172642,2.127,2524.2,2523.8,3.2078]
[1724959172940,0.3961,2524.0,2523.8,3.2078]
[1724959173142,2.3104,2523.9,2523.8,3.2078]
[1724959173546,6.2728,2523.9,2523.8,3.60392]
[1724959173746,2.3104,2523.9,2523.8,3.60392]
[1724959174036,2.127,2524.2,2523.8,3.60392]
[1724959174240,2.2182,2524.3,2524.2,0.39606]
[1724959175340,7.5294,2524.5,2524.4,0.39603]
[1724959177539,0.39604,2524.4,2523.9,40.8]
[1724959177735,12.10932094,2524.5,2524.3,0.39603]
[1724959178040,11.71330094,2524.5,2523.9,41.79025]
[1724959178347,11.71330094,2524.5,2524.4,0.39603]
[1724959178546,11.71330094,2524.5,2524.3,0.39603]
[1724959179443,12.10932094,2524.5,2524.3,0.39605]
[1724959179944,11.71330094,2524.5,2524.4,0.39603]
[1724959180146,11.71330094,2524.5,2524.3,0.39604]
[1724959180447,12.10932094,2524.5,2524.3,0.39604]
[1724959180639,11.71330094,2524.5,2524.4,0.39603]
[1724959180841,15.67490094,2524.5,2524.4,0.39603]
[1724959181242,16.07091094,2524.5,2524.3,0.39604]
[1724959181445,12.10931094,2524.5,2524.3,0.39604]
[1724959181845,11.71330094,2524.5,2524.4,0.39603]
[1724959182343,15.67490094,2524.5,2524.4,0.39603]
[1724959182551,16.07091094,2524.5,2524.3,0.39604]
[1724959182846,11.71330094,2524.5,2524.3,0.39604]
[1724959183044,11.71330094,2524.5,2523.7,3.2078]
[1724959183045,0.39608,2524.1,2523.7,3.2078]
[1724959183246,3.2078,2524.4,2524.3,0.39605]
[1724959183441,7.1694,2524.4,2524.3,0.39605]
[1724959183637,7.56543,2524.4,2524.3,0.39605]
[1724959183842,3.2078,2524.4,2524.3,4.35765]
[1724959184042,3.2078,2524.4,2524.3,0.39605]
[1724959185053,3.2078,2524.4,2524.2,0.39605]
[1724959185237,0.39605,2524.3,2524.2,0.39605]
[1724959185444,3.2078,2524.4,2524.2,0.39605]
[1724959185649,3.60384,2524.4,2524.2,0.39606]
[1724959185853,3.60384,2524.4,2524.2,0.39605]
[1724959185854,0.39603,2524.4,2524.2,0.39605]
[1724959186048,7.92543,2524.5,2524.3,0.39604]
[1724959186256,0.39603,2524.4,2524.3,0.39604]
[1724959186455,2.3104,2524.5,2524.4,0.39603]
[1724959187148,0.4018773,2525.0,2524.9,0.39595]
[1724959187149,3.2137373,2525.0,2524.9,0.39595]
[1724959187545,3.2137373,2525.0,2524.5,2.2462]
[1724959187742,0.396,2524.6,2524.3,4.107]
[1724959187942,4.56,2524.5,2524.1,0.39606]
[1724959188149,13.7205717,2524.5,2523.7,2.2462]
[1724959188347,4.79352,2524.5,2524.1,0.39607]
[1724959188543,4.3975,2524.5,2524.2,0.39606]
[1724959188753,4.27284691,2524.4,2523.7,2.2462]
[1724959189051,4.27284691,2524.4,2524.1,0.39606]
[1724959189244,6.43304691,2524.4,2524.1,0.39606]
[1724959190252,6.43304691,2524.4,2523.7,2.2462]
[1724959190253,10.03688691,2524.4,2524.0,0.39608]
[1724959190557,9.64084691,2524.4,2524.0,0.39609]
[1724959190761,9.64084691,2524.4,2523.6,7.3148]
[1724959191054,0.39607,2524.2,2523.8,0.39612]
[1724959191448,4.15125416,2524.1,2523.8,0.39612]
[1724959191655,4.15125416,2524.1,2523.9,0.39611]
[1724959192046,5.202,2524.3,2524.0,0.39609]
[1724959192245,5.202,2524.3,2523.7,0.39614]
[1724959192452,4.31858534,2524.2,2523.6,7.3148]
[1724959192658,4.31858534,2524.2,2523.9,0.39611]
[1724959193043,4.71465534,2524.2,2523.8,0.39612]
[1724959193246,4.71465534,2524.2,2523.7,0.39613]
[1724959193247,0.39608,2524.1,2523.7,0.39613]
[1724959193650,4.71465534,2524.2,2523.8,0.39611]
[1724959194050,4.31858534,2524.2,2523.6,3.2078]
[1724959194352,4.71465534,2524.2,2523.8,0.39611]
[1724959194547,0.39608,2524.1,2523.6,3.2078]
[1724959194746,0.39608,2524.1,2523.8,0.39612]
[1724959195450,0.39609,2524.1,2523.7,0.39612]
[1724959195648,0.39609,2524.1,2523.8,0.39612]
[1724959196853,0.39609,2524.1,2523.9,0.39611]
[1724959197051,4.31858534,2524.2,2524.1,0.39608]
[1724959197253,8.622,2524.3,2524.2,0.39606]
[1724959197254,5.202,2524.3,2524.2,0.39606]
[1724959200456,0.39606,2524.2,2524.0,0.39609]
[1724959200656,0.39606,2524.2,2523.6,3.2078]
[1724959200657,13.57963661,2524.3,2524.1,0.39606]
[1724959200953,5.202,2524.3,2524.2,0.39606]
[1724959202464,2.1728,2524.5,2524.4,0.39603]
[1724959202763,7.97782775,2524.9,2524.2,3.9616]
[1724959202764,4.5511,2524.9,2524.2,8.37173]
[1724959202953,2.2464373,2525.0,2524.5,4.41004]
[1724959203255,7.94845877,2524.9,2524.5,0.396]
[1724959203452,0.39597,2524.8,2524.5,0.39601]
[1724959203657,0.39597,2524.8,2524.4,3.2078]
[1724959203658,0.39599,2524.7,2524.4,3.2078]
[1724959203845,4.34469877,2524.7,2524.4,3.60383]
[1724959204050,4.34469877,2524.7,2524.5,0.39601]
[1724959204453,4.34469877,2524.7,2524.6,0.396]
[1724959204655,7.7589,2524.9,2524.6,0.396]
[1724959204859,2.6423773,2525.0,2524.0,14.7838]
[1724959204860,2.2464373,2525.0,2524.3,4.19792]
[1724959205057,2.2464373,2525.0,2524.8,0.39595]
[1724959205356,2.2464373,2525.0,2524.3,4.19792]
[1724959205568,2.2464373,2525.0,2524.9,0.39595]
[1724959205756,0.0059373,2525.0,2524.9,0.39595]
[1724959205958,0.0059373,2525.0,2524.9,4.35675]
[1724959207058,7.5132,2525.4,2524.9,4.35675]
[1724959207059,5.202,2525.4,2525.3,0.39589]
[1724959207361,5.202,2525.4,2524.7,3.42]
[1724959207856,5.202,2525.4,2524.6,4.9767]
[1724959207857,8.4098,2525.4,2525.1,0.39592]
[1724959208061,8.4098,2525.4,2525.0,0.4018673]
[1724959208363,8.80568,2525.4,2525.0,0.4018673]
[1724959208676,0.39589,2525.3,2525.0,0.4018673]
[1724959208863,3.2078,2525.1,2525.0,0.0059373]
[1724959209262,7.56372,2525.1,2525.0,0.0059373]
[1724959209560,0.39599,2524.7,2524.0,4.23380163]
[1724959209756,3.42,2524.7,2524.4,0.39603]
[1724959209951,4.26265425,2524.6,2524.5,0.39601]
[1724959210153,3.2078,2524.8,2524.1,4.4102]
[1724959210359,3.2078,2524.8,2524.7,0.39598]
[1724959210562,3.2078,2524.8,2524.6,0.39599]
[1724959210759,3.60377,2524.8,2524.5,0.396]
[1724959210961,3.42,2524.6,2524.0,3.2078]
[1724959211159,3.42,2524.6,2523.6,3.30960245]
[1724959211160,3.2078,2524.2,2523.6,5.3612]
[1724959211464,2.2656,2524.1,2523.8,0.39612]
[1724959211672,4.6114,2524.1,2523.8,0.39612]
[1724959211974,4.6114,2524.1,2523.9,0.3961]
[1724959212172,4.6114,2524.1,2524.0,0.39609]
[1724959212468,0.0059373,2524.2,2524.1,0.39608]
[1724959212865,0.0059373,2524.2,2524.1,4.35768]
[1724959213669,0.0059373,2524.2,2524.1,0.39608]
[1724959213876,0.0059373,2524.2,2524.1,4.35768]
[1724959214369,0.0059373,2524.2,2524.1,13.77768]
[1724959216388,0.0059373,2524.2,2524.1,14.76788]
[1724959218881,3.961,2524.8,2524.7,0.39598]
[1724959219082,2.2322,2525.2,2525.1,0.39592]
[1724959220675,0.0059373,2525.4,2525.1,0.39592]
[1724959220676,0.0059373,2525.4,2525.3,0.39589]
[1724959221282,0.0059373,2525.4,2525.3,17.97342]
[1724959221496,0.0059373,2525.4,2525.3,16.98369]
[1724959221979,0.0059373,2525.4,2525.3,17.97342]
[1724959222593,0.0059373,2525.4,2525.3,14.55342]
[1724959222784,7.3e-06,2525.4,2525.3,17.97342]
[1724959224604,7.3e-06,2525.4,2525.3,7.56369]
[1724959224893,3.03076775,2525.8,2525.3,7.56369]
[1724959224894,3.03076775,2525.8,2525.4,0.7911927]
[1724959225187,3.03076775,2525.8,2525.6,0.39583]
[1724959225498,3.03076775,2525.8,2525.4,0.7911927]
[1724959225791,3.03076775,2525.8,2525.6,0.39583]
[1724959225989,3.03076775,2525.8,2525.7,0.39583]
[1724959226292,3.03076775,2525.8,2525.6,0.39583]
[1724959226487,3.03076775,2525.8,2525.7,0.39583]
[1724959226696,2.2951373,2525.9,2525.7,0.39583]
[1724959226901,2.2951373,2525.9,2525.8,0.39581]
[1724959227398,2.2951373,2525.9,2525.7,0.39582]
[1724959227787,2.2951373,2525.9,2525.8,0.39581]
[1724959230587,0.0059373,2525.9,2525.8,4.35501]
[1724959230890,0.0059373,2525.9,2525.8,11.34454]
[1724959231094,0.0059373,2525.9,2525.8,12.33407]
[1724959232188,0.0059373,2525.9,2525.8,11.34454]
[1724959232492,0.0059373,2525.9,2525.8,4.35501]
[1724959235192,0.0059373,2525.9,2525.8,5.34454]
[1724959235592,0.0059373,2525.9,2525.8,4.35501]
[1724959235992,0.0059373,2525.9,2525.8,0.39581]
[1724959236592,0.0059373,2525.9,2525.8,4.35501]
[1724959236798,0.0059373,2525.9,2525.8,5.34454]
[1724959237797,0.0059373,2525.9,2525.8,4.35501]
[1724959238105,0.0059373,2525.9,2525.8,0.39581]
[1724959239301,0.0059373,2525.9,2525.8,5.34454]
[1724959239491,0.0059373,2525.9,2525.8,4.35501]
[1724959239694,0.0059373,2525.9,2525.8,0.39581]
[1724959240300,0.0059373,2525.9,2525.6,3.2078]
[1724959240495,0.4017373,2525.9,2525.7,0.39582]
[1724959240802,4.5448,2525.8,2525.7,0.39582]
[1724959241007,2.2983,2525.8,2525.7,0.39582]
[1724959241805,2.2983,2525.8,2525.7,8.76459]
[1724959242204,0.0059373,2525.9,2525.8,2.37487]
[1724959242411,0.0059373,2525.9,2525.8,6.33407]
[1724959242712,0.0059373,2525.9,2525.8,12.33407]
[1724959243499,7.3e-06,2525.9,2525.8,12.33407]
[1724959243904,2.2983,2526.4,2526.3,0.39573]
[1724959245598,4.5159373,2526.6,2526.5,0.3957]
[1724959248313,0.0059373,2526.6,2526.5,0.3957]
[1724959250113,0.0059373,2526.6,2526.5,5.34256]
[1724959252811,0.0059373,2526.6,2526.5,4.3533]
[1724959253018,0.0059373,2526.6,2526.5,0.3957]
[1724959254422,0.0059373,2526.6,2526.4,0.39571]
[1724959254922,0.0059373,2526.6,2526.5,0.3957]
[1724959260226,0.39572,2526.4,2526.3,0.0059373]
[1724959260726,4.35412,2526.4,2526.3,0.0059373]
[1724959261717,0.39576,2526.1,2525.9,4.107]
[1724959262023,4.4435,2526.0,2525.9,4.50279]
[1724959262620,4.4435,2526.0,2525.9,4.107]
[1724959262922,4.4435,2526.0,2525.9,4.50279]
[1724959264931,4.4435,2526.0,2525.9,0.39579]
[1724959264932,2.2507,2526.0,2525.9,0.39579]
[1724959267526,2.2507,2526.0,2525.7,3.2137373]
[1724959267527,6.2099,2526.0,2525.8,0.3958]
[1724959267719,6.2099,2526.0,2525.7,3.2137373]
[1724959267720,2.64648,2526.0,2525.7,0.4017573]
[1724959268423,0.39581,2525.8,2525.7,0.0059373]
[1724959268619,8.7550844,2525.9,2525.7,0.0059373]
[1724959268923,2.2509,2525.8,2525.7,0.0059373]
[1724959269125,2.2509,2525.8,2525.7,0.4017673]
[1724959269427,6.2101,2525.8,2525.7,0.4017673]
[1724959269625,2.2509,2525.8,2525.7,0.4017673]
[1724959270024,6.2101,2525.8,2525.7,0.4017673]
[1724959270419,6.2101,2525.8,2525.7,0.0059373]
[1724959270627,6.60591,2525.8,2525.7,0.0059373]
[1724959271129,6.2101,2525.8,2525.7,0.4017673]
[1724959271723,6.60591,2525.8,2525.7,0.0059373]
[1724959271922,0.39592,2525.2,2525.0,3.2078]
[1724959272126,2.317,2525.1,2525.0,0.39594]
[1724959272326,8.5165,2525.1,2525.0,0.39594]
[1724959272732,3.8845,2525.1,2525.0,0.39594]
[1724959273436,7.8445,2525.1,2524.9,0.39595]
[1724959273637,3.8845,2525.1,2524.9,0.39595]
[1724959275023,2.3409,2525.0,2524.8,0.0059373]
[1724959275335,0.39599,2524.7,2524.3,3.60384]
[1724959275533,3.42,2524.9,2524.2,4.107]
[1724959275534,3.42,2524.9,2524.5,0.39601]
[1724959275832,5.94464,2525.0,2524.3,3.42]
[1724959276046,4.30890632,2524.8,2524.2,4.107]
[1724959276224,4.30890632,2524.8,2524.5,0.396]
[1724959276430,0.39595,2524.9,2524.5,0.396]
[1724959276740,6.6278,2524.6,2524.0,0.39608]
[1724959276934,0.39603,2524.4,2524.1,0.39607]
[1724959277236,0.39603,2524.4,2523.8,3.2078]
[1724959277237,8.50080347,2524.5,2524.3,0.39603]
[1724959277435,8.89681347,2524.5,2524.2,0.39605]
[1724959277738,8.50080347,2524.5,2524.3,0.39604]
[1724959278037,4.3099,2524.5,2524.4,0.39603]